[Event "*** SCC Grand Prix: Titled Tuesday Blitz"]
[Site "Chess.com"]
[Date "2020.06.09"]
[Round "4"]
[White "CookiesAndIceCream"]
[Black "Unknown_IM"]
[Result "1-0"]
[WhiteElo "2326"]
[BlackElo "2452"]
[TimeControl "180+1"]
[EndTime "9:39:48 PDT"]
[Termination "CookiesAndIceCream won by resignation"]

1. e4 {[%clk 0:03:00.9]} 1... e5 {[%clk 0:02:59.7]} 2. Nf3 {[%clk 0:02:57]} 2...
Nc6 {[%clk 0:02:59.6]} 3. Nc3 {[%clk 0:02:57.5]} 3... Nf6 {[%clk 0:02:57.6]} 4.
Bb5 {[%clk 0:02:57.8]} 4... Bd6 {[%clk 0:02:56.8]} 5. O-O {[%clk 0:02:57.8]}
5... O-O {[%clk 0:02:50.1]} 6. d3 {[%clk 0:02:57.5]} 6... a6 {[%clk 0:02:48.6]}
7. Ba4 {[%clk 0:02:57]} 7... b5 {[%clk 0:02:47.9]} 8. Bb3 {[%clk 0:02:56.8]}
8... Na5 {[%clk 0:02:47]} 9. Bg5 {[%clk 0:02:52.7]} 9... Nxb3 {[%clk 0:02:40.9]}
10. axb3 {[%clk 0:02:52.4]} 10... c6 {[%clk 0:02:40.3]} 11. d4 {[%clk
0:02:41.1]} 11... exd4 {[%clk 0:02:02.3]} 12. Qxd4 {[%clk 0:02:20.2]} 12... Be7
{[%clk 0:02:00.2]} 13. e5 {[%clk 0:02:17.6]} 13... Ne8 {[%clk 0:01:59.9]} 14.
Bxe7 {[%clk 0:02:06]} 14... Qxe7 {[%clk 0:02:00.8]} 15. Ne4 {[%clk 0:02:06.3]}
15... Nc7 {[%clk 0:01:43.4]} 16. b4 {[%clk 0:01:57.1]} 16... Nd5 {[%clk
0:01:38.6]} 17. c3 {[%clk 0:01:54.5]} 17... f6 {[%clk 0:01:25.9]} 18. exf6
{[%clk 0:01:45.5]} 18... Nxf6 {[%clk 0:01:25]} 19. Rfe1 {[%clk 0:01:44.3]} 19...
Nxe4 {[%clk 0:01:24.3]} 20. Rxe4 {[%clk 0:01:43.8]} 20... Qf7 {[%clk 0:00:59.6]}
21. Qd6 {[%clk 0:01:37.1]} 21... Qf6 {[%clk 0:00:50.3]} 22. Qc7 {[%clk
0:01:09.8]} 22... d5 {[%clk 0:00:39.1]} 23. Re7 {[%clk 0:01:08.9]} 23... Bf5
{[%clk 0:00:35.7]} 24. Nd4 {[%clk 0:00:54.5]} 24... Bg6 {[%clk 0:00:23.1]} 25.
f3 {[%clk 0:00:50.6]} 25... Rfc8 {[%clk 0:00:14.5]} 26. Qd7 {[%clk 0:00:39.9]}
26... Rd8 {[%clk 0:00:14.6]} 27. Qe6+ {[%clk 0:00:39.4]} 27... Kf8 {[%clk
0:00:09.2]} 28. Qxf6+ {[%clk 0:00:37]} 28... gxf6 {[%clk 0:00:10.1]} 29. Rc7
{[%clk 0:00:37.5]} 29... Rdc8 {[%clk 0:00:08.3]} 30. Rxa6 {[%clk 0:00:33]} 30...
Rxc7 {[%clk 0:00:07.2]} 31. Rxa8+ {[%clk 0:00:33.2]} 31... Ke7 {[%clk
0:00:07.7]} 32. Ra6 {[%clk 0:00:28.8]} 32... Kd7 {[%clk 0:00:07.9]} 33. Kf2
{[%clk 0:00:28.7]} 33... f5 {[%clk 0:00:05.1]} 34. Ke3 {[%clk 0:00:28.1]} 34...
Rc8 {[%clk 0:00:03.3]} 35. Kf4 {[%clk 0:00:28]} 35... c5 {[%clk 0:00:02.7]} 36.
bxc5 {[%clk 0:00:25.7]} 36... Rxc5 {[%clk 0:00:03.6]} 37. Rb6 {[%clk 0:00:25.6]}
37... Kc7 {[%clk 0:00:03]} 38. Rxb5 {[%clk 0:00:25.6]} 38... Rxb5 {[%clk
0:00:03.3]} 39. Nxb5+ {[%clk 0:00:26.5]} 39... Kc6 {[%clk 0:00:04.2]} 40. Nd4+
{[%clk 0:00:27.2]} 40... Kc5 {[%clk 0:00:04.1]} 41. Nxf5 {[%clk 0:00:28.1]}
41... Kc4 {[%clk 0:00:04.3]} 42. Ne7 {[%clk 0:00:26.4]} 42... Bf7 {[%clk
0:00:03.8]} 43. Ke5 {[%clk 0:00:23.5]} 43... Kc5 {[%clk 0:00:03.8]} 44. g4
{[%clk 0:00:23.1]} 44... h6 {[%clk 0:00:03.5]} 45. f4 {[%clk 0:00:23.2]} 45...
Kc4 {[%clk 0:00:03.8]} 46. h4 {[%clk 0:00:23.5]} 46... Kc5 {[%clk 0:00:04.1]}
47. g5 {[%clk 0:00:23.2]} 47... hxg5 {[%clk 0:00:04.2]} 48. fxg5 {[%clk
0:00:23.7]} 1-0

[Event "*** SCC Grand Prix: Titled Tuesday Blitz"]
[Site "Chess.com"]
[Date "2020.06.09"]
[Round "4"]
[White "Maksimus1998"]
[Black "Rinas_Oleg"]
[Result "1-0"]
[WhiteElo "2520"]
[BlackElo "2210"]
[TimeControl "180+1"]
[EndTime "9:39:49 PDT"]
[Termination "Maksimus1998 won on time"]

1. e4 {[%clk 0:03:00.9]} 1... c5 {[%clk 0:02:59.3]} 2. Nf3 {[%clk 0:03:00.3]}
2... Nc6 {[%clk 0:02:58.2]} 3. Bb5 {[%clk 0:02:58.4]} 3... Nd4 {[%clk
0:02:56.9]} 4. Nxd4 {[%clk 0:02:57.1]} 4... cxd4 {[%clk 0:02:56.5]} 5. O-O
{[%clk 0:02:57.8]} 5... g6 {[%clk 0:02:56.2]} 6. d3 {[%clk 0:02:55.5]} 6... Bg7
{[%clk 0:02:55.9]} 7. f4 {[%clk 0:02:53.7]} 7... Nf6 {[%clk 0:02:53.2]} 8. Nd2
{[%clk 0:02:52.5]} 8... O-O {[%clk 0:02:52.2]} 9. Nf3 {[%clk 0:02:51.7]} 9... a6
{[%clk 0:02:51.1]} 10. Bc4 {[%clk 0:02:51.5]} 10... d5 {[%clk 0:02:49.7]} 11.
exd5 {[%clk 0:02:39]} 11... Nxd5 {[%clk 0:02:49.2]} 12. Qe2 {[%clk 0:02:36.7]}
12... e6 {[%clk 0:02:40.5]} 13. Ne5 {[%clk 0:02:29.3]} 13... b5 {[%clk
0:02:36.9]} 14. Bb3 {[%clk 0:02:28.9]} 14... Bb7 {[%clk 0:02:36.1]} 15. Bd2
{[%clk 0:02:25.1]} 15... Qd6 {[%clk 0:02:30.1]} 16. Rae1 {[%clk 0:01:58.2]}
16... a5 {[%clk 0:02:28.6]} 17. a4 {[%clk 0:01:57]} 17... b4 {[%clk 0:02:26.5]}
18. Qg4 {[%clk 0:01:50.9]} 18... Rac8 {[%clk 0:02:21]} 19. Qh4 {[%clk
0:01:47.4]} 19... Ne7 {[%clk 0:01:52.1]} 20. Ng4 {[%clk 0:01:46.5]} 20... Nf5
{[%clk 0:01:49.9]} 21. Nf6+ {[%clk 0:01:46.3]} 21... Bxf6 {[%clk 0:01:46.8]} 22.
Qxf6 {[%clk 0:01:47.2]} 22... Rc5 {[%clk 0:01:24.3]} 23. Rxe6 {[%clk 0:01:43]}
23... Qd8 {[%clk 0:01:09.9]} 24. Qxd8 {[%clk 0:01:42.1]} 24... Rxd8 {[%clk
0:01:08.3]} 25. Re2 {[%clk 0:01:29.7]} 25... h5 {[%clk 0:01:04.8]} 26. Rfe1
{[%clk 0:01:28.3]} 26... Kf8 {[%clk 0:01:04.6]} 27. Re5 {[%clk 0:01:26.3]} 27...
Rdc8 {[%clk 0:00:57.2]} 28. Rxc5 {[%clk 0:01:25.9]} 28... Rxc5 {[%clk
0:00:56.4]} 29. Re5 {[%clk 0:01:26.1]} 29... Rxe5 {[%clk 0:00:55.9]} 30. fxe5
{[%clk 0:01:27]} 30... Ke7 {[%clk 0:00:48.4]} 31. Bg5+ {[%clk 0:01:24.9]} 31...
Ke8 {[%clk 0:00:42.6]} 32. Kf2 {[%clk 0:01:25]} 32... Ng7 {[%clk 0:00:36.4]} 33.
h3 {[%clk 0:01:07.8]} 33... Ne6 {[%clk 0:00:35.5]} 34. Bd2 {[%clk 0:01:00.2]}
34... Nc5 {[%clk 0:00:34.4]} 35. Bc4 {[%clk 0:01:00.1]} 35... Ke7 {[%clk
0:00:18.5]} 36. b3 {[%clk 0:00:59.7]} 36... Bc8 {[%clk 0:00:15.6]} 37. Bg5+
{[%clk 0:00:58.9]} 37... Ke8 {[%clk 0:00:14.2]} 38. Bc1 {[%clk 0:00:51.2]} 38...
Ne6 {[%clk 0:00:10.7]} 39. Bb2 {[%clk 0:00:50.3]} 39... Ke7 {[%clk 0:00:09.7]}
40. Bxe6 {[%clk 0:00:49.9]} 40... Kxe6 {[%clk 0:00:08.9]} 41. Bxd4 {[%clk
0:00:50.8]} 41... Kd5 {[%clk 0:00:07.6]} 42. Ke3 {[%clk 0:00:50.1]} 42... Bb7
{[%clk 0:00:05.3]} 43. h4 {[%clk 0:00:49.9]} 43... Ke6 {[%clk 0:00:04.6]} 44. g3
{[%clk 0:00:50.4]} 44... Kd5 {[%clk 0:00:03.1]} 45. Bb6 {[%clk 0:00:50.8]} 45...
Kxe5 {[%clk 0:00:02.4]} 46. Bxa5 {[%clk 0:00:50.9]} 46... Kf5 {[%clk 0:00:02.3]}
47. Bxb4 {[%clk 0:00:50.5]} 47... f6 {[%clk 0:00:02.6]} 48. Bd6 {[%clk
0:00:49.4]} 48... g5 {[%clk 0:00:02.5]} 49. hxg5 {[%clk 0:00:49.2]} 49... fxg5
{[%clk 0:00:02.5]} 50. b4 {[%clk 0:00:49.2]} 50... h4 {[%clk 0:00:02.2]} 51.
gxh4 {[%clk 0:00:49]} 51... gxh4 {[%clk 0:00:02.3]} 52. c4 {[%clk 0:00:49.8]}
52... Ke6 {[%clk 0:00:01.7]} 53. Bh2 {[%clk 0:00:48.7]} 1-0

[Event "*** SCC Grand Prix: Titled Tuesday Blitz"]
[Site "Chess.com"]
[Date "2020.06.09"]
[Round "4"]
[White "AndrewMaco"]
[Black "GOGIEFF"]
[Result "0-1"]
[WhiteElo "2669"]
[BlackElo "2903"]
[TimeControl "180+1"]
[EndTime "9:39:50 PDT"]
[Termination "GOGIEFF won by resignation"]

1. e4 {[%clk 0:02:10.7]} 1... c5 {[%clk 0:02:56.6]} 2. Nf3 {[%clk 0:02:10.7]}
2... d6 {[%clk 0:02:55.9]} 3. d4 {[%clk 0:02:10.9]} 3... cxd4 {[%clk 0:02:54.9]}
4. Qxd4 {[%clk 0:02:11.8]} 4... Nf6 {[%clk 0:02:55]} 5. Be2 {[%clk 0:02:12]}
5... Nc6 {[%clk 0:02:48]} 6. Qe3 {[%clk 0:02:12.1]} 6... g6 {[%clk 0:02:35.3]}
7. O-O {[%clk 0:02:12.1]} 7... Bg7 {[%clk 0:02:30.6]} 8. c4 {[%clk 0:02:12.6]}
8... O-O {[%clk 0:02:29]} 9. Nc3 {[%clk 0:02:13.2]} 9... Ng4 {[%clk 0:02:26.2]}
10. Qg5 {[%clk 0:02:12.6]} 10... Be6 {[%clk 0:02:22.5]} 11. Qh4 {[%clk
0:02:06.3]} 11... Qa5 {[%clk 0:01:58]} 12. Ng5 {[%clk 0:01:56.2]} 12... Nf6
{[%clk 0:01:56.6]} 13. Nd5 {[%clk 0:01:48.9]} 13... h5 {[%clk 0:01:45]} 14. a3
{[%clk 0:01:04.8]} 14... Rae8 {[%clk 0:01:37.4]} 15. b4 {[%clk 0:01:01.6]} 15...
Qd8 {[%clk 0:01:36.3]} 16. Nxe6 {[%clk 0:00:57.4]} 16... fxe6 {[%clk 0:01:35.5]}
17. Nf4 {[%clk 0:00:58]} 17... Kf7 {[%clk 0:01:33.2]} 18. Bb2 {[%clk 0:00:43.4]}
18... e5 {[%clk 0:01:31.6]} 19. Nd5 {[%clk 0:00:41.3]} 19... e6 {[%clk
0:01:31.2]} 20. Ne3 {[%clk 0:00:34.8]} 20... Nd4 {[%clk 0:01:29.5]} 21. Bd1
{[%clk 0:00:31.4]} 21... Kg8 {[%clk 0:01:22.3]} 22. c5 {[%clk 0:00:31.6]} 22...
dxc5 {[%clk 0:01:07]} 23. Nc4 {[%clk 0:00:31.9]} 23... Nd7 {[%clk 0:01:04.6]}
24. Qg3 {[%clk 0:00:28.7]} 24... Kh7 {[%clk 0:00:56.8]} 25. Bxd4 {[%clk
0:00:22]} 25... exd4 {[%clk 0:00:54.9]} 26. e5 {[%clk 0:00:22.3]} 26... b5
{[%clk 0:00:51.5]} 27. Bc2 {[%clk 0:00:20.3]} 27... Rf5 {[%clk 0:00:51.5]} 28.
Bxf5 {[%clk 0:00:19.1]} 28... exf5 {[%clk 0:00:52.4]} 29. Nd6 {[%clk 0:00:19.2]}
29... Bxe5 {[%clk 0:00:52.5]} 30. Nf7 {[%clk 0:00:18]} 30... Bxg3 {[%clk
0:00:51.2]} 31. Nxd8 {[%clk 0:00:18.5]} 31... Rxd8 {[%clk 0:00:51.5]} 32. hxg3
{[%clk 0:00:18.2]} 32... c4 {[%clk 0:00:52]} 33. Rfe1 {[%clk 0:00:17.7]} 33...
d3 {[%clk 0:00:52.4]} 34. Re7+ {[%clk 0:00:16.9]} 34... Kh6 {[%clk 0:00:52.9]}
35. Kf1 {[%clk 0:00:17.1]} 35... Nb6 {[%clk 0:00:50.2]} 36. Rc7 {[%clk
0:00:15.7]} 36... Na4 {[%clk 0:00:48.4]} 37. Re1 {[%clk 0:00:12.9]} 37... d2
{[%clk 0:00:46.5]} 38. Rd1 {[%clk 0:00:10.2]} 38... c3 {[%clk 0:00:46.6]} 39.
Ke2 {[%clk 0:00:10]} 39... Kg5 {[%clk 0:00:44]} 40. Rc6 {[%clk 0:00:07.1]} 40...
f4 {[%clk 0:00:41.9]} 41. gxf4+ {[%clk 0:00:06.4]} 41... Kxf4 {[%clk 0:00:42.8]}
42. g3+ {[%clk 0:00:06.9]} 42... Ke4 {[%clk 0:00:41.1]} 43. f3+ {[%clk
0:00:07.2]} 43... Kd4 {[%clk 0:00:41.1]} 44. Rxg6 {[%clk 0:00:06.8]} 44... Re8+
{[%clk 0:00:41.3]} 45. Kf2 {[%clk 0:00:07.1]} 45... Kd3 {[%clk 0:00:39.6]} 46.
Rc6 {[%clk 0:00:04.1]} 46... Nb2 {[%clk 0:00:38.7]} 47. Rd6+ {[%clk 0:00:03.4]}
47... Kc2 {[%clk 0:00:38.7]} 48. Rh1 {[%clk 0:00:03.6]} 48... Nd3+ {[%clk
0:00:37.7]} 49. Rxd3 {[%clk 0:00:03.4]} 49... Kxd3 {[%clk 0:00:37.7]} 50. Rxh5
{[%clk 0:00:04.3]} 50... d1=Q {[%clk 0:00:37.5]} 51. Rd5+ {[%clk 0:00:05.2]}
51... Kc2 {[%clk 0:00:37.5]} 52. Rxd1 {[%clk 0:00:06.1]} 52... Kxd1 {[%clk
0:00:38.4]} 53. g4 {[%clk 0:00:06.9]} 53... c2 {[%clk 0:00:38.9]} 54. g5 {[%clk
0:00:07.8]} 54... c1=Q {[%clk 0:00:39.8]} 55. g6 {[%clk 0:00:08.7]} 55... Qe3+
{[%clk 0:00:39.7]} 56. Kg3 {[%clk 0:00:08.8]} 56... Qg5+ {[%clk 0:00:40.3]} 0-1

[Event "*** SCC Grand Prix: Titled Tuesday Blitz"]
[Site "Chess.com"]
[Date "2020.06.09"]
[Round "4"]
[White "Escanor89"]
[Black "attack2mateU"]
[Result "1/2-1/2"]
[WhiteElo "2515"]
[BlackElo "2710"]
[TimeControl "180+1"]
[EndTime "9:39:50 PDT"]
[Termination "Game drawn by repetition"]

1. c4 {[%clk 0:03:00.9]} 1... g6 {[%clk 0:02:59.4]} 2. Nc3 {[%clk 0:02:58.7]}
2... c5 {[%clk 0:02:58.5]} 3. g3 {[%clk 0:02:57]} 3... Bg7 {[%clk 0:02:58.2]} 4.
Bg2 {[%clk 0:02:56.8]} 4... Nc6 {[%clk 0:02:58.7]} 5. e4 {[%clk 0:02:55.8]} 5...
d6 {[%clk 0:02:47.1]} 6. Nge2 {[%clk 0:02:51.6]} 6... h5 {[%clk 0:02:43.3]} 7.
h4 {[%clk 0:02:40]} 7... Nf6 {[%clk 0:02:37.8]} 8. d3 {[%clk 0:02:39.6]} 8...
O-O {[%clk 0:02:15.7]} 9. O-O {[%clk 0:02:39.1]} 9... Bd7 {[%clk 0:02:06.6]} 10.
Bg5 {[%clk 0:02:33.8]} 10... a6 {[%clk 0:01:56.2]} 11. Qd2 {[%clk 0:02:29.9]}
11... Kh7 {[%clk 0:01:50.8]} 12. Nd5 {[%clk 0:02:23.3]} 12... Nxd5 {[%clk
0:01:28.4]} 13. exd5 {[%clk 0:02:18.5]} 13... Ne5 {[%clk 0:01:28.9]} 14. Rae1
{[%clk 0:02:09.9]} 14... b5 {[%clk 0:01:25.2]} 15. b3 {[%clk 0:02:00.8]} 15...
Bf5 {[%clk 0:01:09.4]} 16. Nc1 {[%clk 0:01:51.7]} 16... Re8 {[%clk 0:00:54.2]}
17. Re2 {[%clk 0:01:33.2]} 17... Qd7 {[%clk 0:00:27.9]} 18. Rfe1 {[%clk
0:01:27]} 18... Bf6 {[%clk 0:00:20.6]} 19. Bxf6 {[%clk 0:00:38]} 19... exf6
{[%clk 0:00:21.5]} 20. Re3 {[%clk 0:00:35.9]} 20... Ng4 {[%clk 0:00:17.3]} 21.
Rxe8 {[%clk 0:00:32.5]} 21... Rxe8 {[%clk 0:00:18.2]} 22. Bf3 {[%clk 0:00:22.6]}
22... Rxe1+ {[%clk 0:00:14.5]} 23. Qxe1 {[%clk 0:00:22.7]} 23... Ne5 {[%clk
0:00:15.3]} 24. Be2 {[%clk 0:00:21.8]} 24... b4 {[%clk 0:00:15]} 25. Qd2 {[%clk
0:00:21.4]} 25... Bg4 {[%clk 0:00:14.6]} 26. Qe3 {[%clk 0:00:20.4]} 26... Qf5
{[%clk 0:00:14.8]} 27. Bxg4 {[%clk 0:00:16.6]} 27... hxg4 {[%clk 0:00:14.8]} 28.
Qe4 {[%clk 0:00:13.2]} 28... Qxe4 {[%clk 0:00:07.8]} 29. dxe4 {[%clk 0:00:12.8]}
29... Kh6 {[%clk 0:00:04.6]} 30. Kf1 {[%clk 0:00:12.7]} 30... g5 {[%clk
0:00:05]} 31. hxg5+ {[%clk 0:00:12.1]} 31... fxg5 {[%clk 0:00:04.6]} 32. Ke2
{[%clk 0:00:12.2]} 32... Kg6 {[%clk 0:00:05.5]} 33. Ke3 {[%clk 0:00:12]} 33...
f5 {[%clk 0:00:05.2]} 34. exf5+ {[%clk 0:00:11.8]} 34... Kxf5 {[%clk 0:00:06.1]}
35. Nd3 {[%clk 0:00:11.5]} 35... Nf3 {[%clk 0:00:04.4]} 36. Nb2 {[%clk
0:00:08.6]} 36... Nd4 {[%clk 0:00:04.8]} 37. Nd3 {[%clk 0:00:07.4]} 37... Nc2+
{[%clk 0:00:04.2]} 38. Kd2 {[%clk 0:00:07.3]} 38... Nd4 {[%clk 0:00:04.9]} 39.
Ke3 {[%clk 0:00:07.4]} 39... a5 {[%clk 0:00:05.3]} 40. Ne1 {[%clk 0:00:06.2]}
40... Nc2+ {[%clk 0:00:04.3]} 41. Kd2 {[%clk 0:00:05.9]} 41... Nd4 {[%clk
0:00:04.8]} 42. Ke3 {[%clk 0:00:06.1]} 42... Kf6 {[%clk 0:00:03]} 43. Nd3 {[%clk
0:00:05.8]} 43... Kf5 {[%clk 0:00:03.2]} 44. Ne1 {[%clk 0:00:05.4]} 1/2-1/2

[Event "*** SCC Grand Prix: Titled Tuesday Blitz"]
[Site "Chess.com"]
[Date "2020.06.09"]
[Round "4"]
[White "Raja3401"]
[Black "Borsuk_Konstantin"]
[Result "1-0"]
[WhiteElo "2818"]
[BlackElo "2563"]
[TimeControl "180+1"]
[EndTime "9:39:51 PDT"]
[Termination "Raja3401 won on time"]

1. e4 {[%clk 0:03:00.9]} 1... e6 {[%clk 0:02:59.7]} 2. d4 {[%clk 0:03:00.4]}
2... d5 {[%clk 0:03:00.3]} 3. Nd2 {[%clk 0:03:00.9]} 3... Nf6 {[%clk 0:02:59.9]}
4. e5 {[%clk 0:03:01.2]} 4... Nfd7 {[%clk 0:03:00.4]} 5. Bd3 {[%clk 0:03:02]}
5... c5 {[%clk 0:03:00.6]} 6. c3 {[%clk 0:03:02.5]} 6... Nc6 {[%clk 0:03:01.1]}
7. Ne2 {[%clk 0:03:03.2]} 7... b6 {[%clk 0:03:00.3]} 8. O-O {[%clk 0:03:01.7]}
8... cxd4 {[%clk 0:03:00.5]} 9. cxd4 {[%clk 0:03:01.8]} 9... Nb4 {[%clk
0:03:00.9]} 10. Bb1 {[%clk 0:03:01.3]} 10... Ba6 {[%clk 0:03:01.4]} 11. a3
{[%clk 0:02:57.1]} 11... Nd3 {[%clk 0:02:59.6]} 12. Qa4 {[%clk 0:02:30.8]} 12...
Qc8 {[%clk 0:02:33.2]} 13. Nc3 {[%clk 0:02:25.3]} 13... Qb7 {[%clk 0:02:09.5]}
14. Nb5 {[%clk 0:02:13.9]} 14... Bxb5 {[%clk 0:01:59.6]} 15. Qxb5 {[%clk
0:02:12.6]} 15... Nxc1 {[%clk 0:01:58.9]} 16. Rxc1 {[%clk 0:02:13.5]} 16... Be7
{[%clk 0:01:51.9]} 17. Bd3 {[%clk 0:02:07.7]} 17... a6 {[%clk 0:01:27.8]} 18.
Qc6 {[%clk 0:02:06.4]} 18... Qa7 {[%clk 0:01:16.2]} 19. Rc2 {[%clk 0:01:47.1]}
19... O-O {[%clk 0:01:06.8]} 20. Rac1 {[%clk 0:01:39.1]} 20... b5 {[%clk
0:00:55.1]} 21. Qc7 {[%clk 0:01:02.2]} 21... Bg5 {[%clk 0:00:52.5]} 22. Qxa7
{[%clk 0:01:00.5]} 22... Rxa7 {[%clk 0:00:52.3]} 23. g3 {[%clk 0:00:58.3]} 23...
Bd8 {[%clk 0:00:18.7]} 24. Nb3 {[%clk 0:00:50.9]} 24... Bb6 {[%clk 0:00:17.1]}
25. Rc8 {[%clk 0:00:46.4]} 25... Ra8 {[%clk 0:00:17.1]} 26. R8c6 {[%clk
0:00:42.4]} 26... Rfb8 {[%clk 0:00:16.9]} 27. Rd6 {[%clk 0:00:38.9]} 27... Ra7
{[%clk 0:00:16.1]} 28. Kf1 {[%clk 0:00:32.9]} 28... Kf8 {[%clk 0:00:16.1]} 29.
h4 {[%clk 0:00:31.4]} 29... Ke7 {[%clk 0:00:16.6]} 30. h5 {[%clk 0:00:29.9]}
30... g6 {[%clk 0:00:16.3]} 31. h6 {[%clk 0:00:28.6]} 31... Rbb7 {[%clk
0:00:13.7]} 32. Rc8 {[%clk 0:00:25.4]} 32... Rc7 {[%clk 0:00:09]} 33. Rh8 {[%clk
0:00:17.9]} 33... Bxd4 {[%clk 0:00:08.9]} 34. Nxd4 {[%clk 0:00:09.1]} 34... Nxe5
{[%clk 0:00:08.1]} 35. Rdd8 {[%clk 0:00:06.8]} 35... Nxd3 {[%clk 0:00:07.1]} 36.
Rde8+ {[%clk 0:00:07.1]} 36... Kf6 {[%clk 0:00:06.6]} 37. Rxh7 {[%clk 0:00:07]}
37... e5 {[%clk 0:00:04.3]} 38. Ne2 {[%clk 0:00:05.9]} 38... Re7 {[%clk
0:00:01.8]} 39. Rhh8 {[%clk 0:00:05.9]} 39... Rxe8 {[%clk 0:00:01.5]} 40. Rxe8
{[%clk 0:00:06.8]} 1-0

[Event "*** SCC Grand Prix: Titled Tuesday Blitz"]
[Site "Chess.com"]
[Date "2020.06.09"]
[Round "4"]
[White "kirillshevchenko"]
[Black "IljaJoke"]
[Result "0-1"]
[WhiteElo "2895"]
[BlackElo "2501"]
[TimeControl "180+1"]
[EndTime "9:39:51 PDT"]
[Termination "IljaJoke won on time"]

1. e4 {[%clk 0:03:00.9]} 1... e5 {[%clk 0:03:00.1]} 2. Nf3 {[%clk 0:03:01]} 2...
Nc6 {[%clk 0:03:00.8]} 3. Bb5 {[%clk 0:03:01.3]} 3... a6 {[%clk 0:03:00.5]} 4.
Ba4 {[%clk 0:03:01.5]} 4... Nf6 {[%clk 0:03:00.9]} 5. d3 {[%clk 0:03:01.8]} 5...
b5 {[%clk 0:03:00.2]} 6. Bb3 {[%clk 0:03:02.1]} 6... Bc5 {[%clk 0:03:01.1]} 7.
Nc3 {[%clk 0:03:01.8]} 7... h6 {[%clk 0:03:00.8]} 8. Nd5 {[%clk 0:03:01.7]} 8...
d6 {[%clk 0:02:59]} 9. c3 {[%clk 0:03:02.1]} 9... Rb8 {[%clk 0:02:58.4]} 10. O-O
{[%clk 0:02:46.6]} 10... O-O {[%clk 0:02:58.3]} 11. Re1 {[%clk 0:02:43.7]} 11...
Nxd5 {[%clk 0:02:56.6]} 12. Bxd5 {[%clk 0:02:43.4]} 12... Ne7 {[%clk 0:02:57.3]}
13. Bb3 {[%clk 0:02:43.3]} 13... Bb6 {[%clk 0:02:53.7]} 14. d4 {[%clk
0:02:42.5]} 14... Ng6 {[%clk 0:02:52.3]} 15. h3 {[%clk 0:02:40]} 15... Qf6
{[%clk 0:02:50.4]} 16. a4 {[%clk 0:02:34.6]} 16... Nf4 {[%clk 0:02:40.2]} 17. a5
{[%clk 0:02:24.1]} 17... Ba7 {[%clk 0:02:37.5]} 18. Be3 {[%clk 0:02:01.2]} 18...
c5 {[%clk 0:02:15.8]} 19. Kh2 {[%clk 0:01:56.4]} 19... g5 {[%clk 0:02:02.4]} 20.
dxe5 {[%clk 0:01:37]} 20... dxe5 {[%clk 0:02:02.1]} 21. Ng1 {[%clk 0:01:36.4]}
21... Kg7 {[%clk 0:01:56.3]} 22. g3 {[%clk 0:01:35.3]} 22... Ng6 {[%clk
0:01:54.8]} 23. Bd5 {[%clk 0:01:31.5]} 23... Be6 {[%clk 0:01:30.4]} 24. b4
{[%clk 0:01:15.5]} 24... Rbc8 {[%clk 0:01:21.7]} 25. Ra2 {[%clk 0:00:54.4]}
25... Rc7 {[%clk 0:01:19.6]} 26. Rd2 {[%clk 0:00:54.3]} 26... Rd8 {[%clk
0:01:11.6]} 27. Qe2 {[%clk 0:00:33.3]} 27... c4 {[%clk 0:01:09.7]} 28. Red1
{[%clk 0:00:32.5]} 28... Bxe3 {[%clk 0:01:07.9]} 29. Qxe3 {[%clk 0:00:33.4]}
29... Rcd7 {[%clk 0:01:04.4]} 30. Bxe6 {[%clk 0:00:31.5]} 30... Qxe6 {[%clk
0:01:00.3]} 31. Kg2 {[%clk 0:00:18.2]} 31... Rd6 {[%clk 0:00:50.6]} 32. Nf3
{[%clk 0:00:08]} 32... Rxd2 {[%clk 0:00:34.5]} 33. Rxd2 {[%clk 0:00:07.5]} 33...
Rd6 {[%clk 0:00:34.7]} 34. Qc5 {[%clk 0:00:05.6]} 34... Rxd2 {[%clk 0:00:24]}
35. Nxd2 {[%clk 0:00:06.5]} 35... Qd7 {[%clk 0:00:18.3]} 36. Qe3 {[%clk
0:00:04]} 36... Ne7 {[%clk 0:00:11.1]} 37. Nf3 {[%clk 0:00:03.5]} 37... Qd6
{[%clk 0:00:10.7]} 38. h4 {[%clk 0:00:03.2]} 38... f6 {[%clk 0:00:10.6]} 39.
hxg5 {[%clk 0:00:03.4]} 39... hxg5 {[%clk 0:00:11.5]} 40. Qb6 {[%clk 0:00:01.9]}
40... Qc6 {[%clk 0:00:08.8]} 41. g4 {[%clk 0:00:01.5]} 41... Kf7 {[%clk
0:00:08.4]} 0-1

[Event "*** SCC Grand Prix: Titled Tuesday Blitz"]
[Site "Chess.com"]
[Date "2020.06.09"]
[Round "4"]
[White "witcher8"]
[Black "Haykos"]
[Result "1-0"]
[WhiteElo "2422"]
[BlackElo "2583"]
[TimeControl "180+1"]
[EndTime "9:39:52 PDT"]
[Termination "witcher8 won on time"]

1. e4 {[%clk 0:03:00.9]} 1... c5 {[%clk 0:02:59.3]} 2. Nf3 {[%clk 0:02:53.5]}
2... e6 {[%clk 0:02:59.3]} 3. b3 {[%clk 0:02:51.8]} 3... Nc6 {[%clk 0:02:52.9]}
4. Bb2 {[%clk 0:02:45.6]} 4... a6 {[%clk 0:02:44.8]} 5. d4 {[%clk 0:01:48.8]}
5... cxd4 {[%clk 0:02:43.8]} 6. Nxd4 {[%clk 0:01:49.7]} 6... Qf6 {[%clk
0:02:43.6]} 7. g3 {[%clk 0:01:29.7]} 7... Bc5 {[%clk 0:02:37.1]} 8. c3 {[%clk
0:01:29.7]} 8... e5 {[%clk 0:02:19.3]} 9. Nf3 {[%clk 0:01:22.1]} 9... d5 {[%clk
0:02:15.8]} 10. exd5 {[%clk 0:01:21.3]} 10... Bg4 {[%clk 0:02:13.2]} 11. Be2
{[%clk 0:01:17.6]} 11... e4 {[%clk 0:01:13.6]} 12. Nd4 {[%clk 0:01:07.3]} 12...
Bxe2 {[%clk 0:00:56.3]} 13. Qxe2 {[%clk 0:01:05.7]} 13... Nxd4 {[%clk
0:00:56.9]} 14. cxd4 {[%clk 0:00:54.6]} 14... Bb4+ {[%clk 0:00:45.6]} 15. Nd2
{[%clk 0:00:54.1]} 15... Ne7 {[%clk 0:00:38]} 16. O-O {[%clk 0:00:43.7]} 16...
Bxd2 {[%clk 0:00:37.7]} 17. Qxd2 {[%clk 0:00:44.6]} 17... Nxd5 {[%clk
0:00:13.5]} 18. Rfe1 {[%clk 0:00:44.3]} 18... Qe6 {[%clk 0:00:10.2]} 19. Rxe4
{[%clk 0:00:22.9]} 19... Qxe4 {[%clk 0:00:07.8]} 20. Re1 {[%clk 0:00:23.5]}
20... Qe6 {[%clk 0:00:05.1]} 21. Rxe6+ {[%clk 0:00:20]} 21... fxe6 {[%clk
0:00:05.2]} 22. Ba3 {[%clk 0:00:13.8]} 22... O-O-O {[%clk 0:00:04.9]} 23. Qg5
{[%clk 0:00:11.1]} 23... Rd7 {[%clk 0:00:03.9]} 24. Qe5 {[%clk 0:00:08]} 24...
Re8 {[%clk 0:00:03.2]} 25. h4 {[%clk 0:00:08.2]} 25... g6 {[%clk 0:00:03.4]} 26.
h5 {[%clk 0:00:07.5]} 26... Nc7 {[%clk 0:00:04]} 27. hxg6 {[%clk 0:00:06.8]}
27... hxg6 {[%clk 0:00:04.9]} 28. Bc5 {[%clk 0:00:05.9]} 28... Nb5 {[%clk
0:00:05.3]} 29. Qf6 {[%clk 0:00:05.8]} 29... e5 {[%clk 0:00:04.9]} 30. dxe5
{[%clk 0:00:04.6]} 30... Nc7 {[%clk 0:00:05.1]} 31. Bd6 {[%clk 0:00:03.6]} 31...
Re6 {[%clk 0:00:04.1]} 32. Qf8+ {[%clk 0:00:03]} 32... Re8 {[%clk 0:00:05]} 33.
Qf6 {[%clk 0:00:02.7]} 33... Re6 {[%clk 0:00:05.2]} 34. Qh8+ {[%clk 0:00:02.9]}
34... Ne8 {[%clk 0:00:05.2]} 35. Qg8 {[%clk 0:00:02.1]} 35... Rdxd6 {[%clk
0:00:03.4]} 36. exd6 {[%clk 0:00:01.9]} 36... Kd7 {[%clk 0:00:04.3]} 37. Qh7+
{[%clk 0:00:01.8]} 37... Kc6 {[%clk 0:00:02.2]} 38. Qh3 {[%clk 0:00:02.7]} 38...
Rxd6 {[%clk 0:00:02]} 39. Kg2 {[%clk 0:00:03.6]} 39... Nf6 {[%clk 0:00:02.1]}
40. Qc8+ {[%clk 0:00:03.4]} 40... Kb6 {[%clk 0:00:01.8]} 41. Qf8 {[%clk
0:00:04.1]} 1-0